[Event "Cracovia Festival-A 2023"]
[Site "Krakow"]
[Date "2024.01.04"]
[Round "9.28"]
[White "Babiarz, Arkadiusz"]
[Black "Loftgaard, Mikkel Vinh"]
[Result "1/2-1/2"]
[ECO "B40"]
[WhiteElo "2129"]
[BlackElo "2322"]
[Annotator "RC"]
[PlyCount "120"]
[EventDate "2023.12.24"]
[EventType "swiss"]
[EventCountry "POL"]
[SourceTitle "playchess.com"]
[Source "ChessBase"]
[SourceQuality "1"]
[TimeControl "40/5400+30:1800+30"]

1. e4 {[%emt 0:00:03]} c5 {[%emt 0:14:34]} 2. Nf3 {[%emt 0:00:05]} e6 {[%emt 0:00:05]} 3. g3 {[%emt 0:00:53]} Nc6 {[%emt 0:00:32]} 4. Bg2 {[%emt 0:00:17]} Nf6 {[%emt 0:00:10]} 5. Qe2 {[%emt 0:00:05]} Be7 {[%emt 0:01:03]} 6. O-O {[%emt 0:00:14]} O-O {[%emt 0:00:06]} 7. Rd1 {[%emt 0:05:15]} d5 {[%emt 0:04:10]} 8. d3 {[%emt 0:06:04]} e5 {[%emt 0:16:59]} 9. exd5 {[%emt 0:02:34]} Nxd5 {[%emt 0:05:39]} 10. c3 {[%emt 0:07:21]} Bf6 {[%emt 0:04:06]} 11. Nbd2 {[%emt 0:01:25]} b6 {[%emt 0:02:17]} 12. Ne4 {[%emt 0:08:24]} Be7 13. d4 exd4 {[%emt 0:07:32]} 14. cxd4 {[%emt 0:00:02]} cxd4 {[%emt 0:04:33]} 15. Nxd4 {[%emt 0:02:38]} Nxd4 {[%emt 0:00:40]} 16. Rxd4 {[%emt 0:00:05]} Nf4 {[%emt 0:01:24]} 17. Bxf4 {[%emt 0:00:06]} Qxd4 {[%emt 0:00:05]} 18. Rd1 {[%emt 0:04:01]} Ba6 {[%emt 0:00:47]} 19. Rxd4 {[%emt 0:05:22]} Bxe2 {[%emt 0:00:34]} 20. Nc3 Bh5 {[%emt 0:08:44]} 21. Bxa8 {[%emt 0:05:03]} Rxa8 {[%emt 0:00:28]} 22. Rd7 {[%emt 0:00:39]} Bf6 {[%emt 0:00:20]} 23. Kg2 {[%emt 0:00:35]} Bg4 {[%emt 0:00:49]} 24. Rb7 {[%emt 0:08:28]} Be6 {[%emt 0:05:01]} 25. Rb8+ {[%emt 0:00:08]} Rxb8 {[%emt 0:00:01]} 26. Bxb8 {[%emt 0:00:08]} a6 {[%emt 0:00:19]} 27. Kf3 {[%emt 0:00:18]} b5 {[%emt 0:01:12]} 28. Bd6 {[%emt 0:04:32]} Bd4 {[%emt 0:02:03]} 29. a4 {[%emt 0:05:44]} Bc4 {[%emt 0:06:05]} 30. axb5 {[%emt 0:00:09]} axb5 {[%emt 0:00:05]} 31. Nd1 {[%emt 0:01:17]} f5 {[%emt 0:02:29]} 32. b4 {[%emt 0:01:53]} Kf7 {[%emt 0:02:31]} 33. Ne3 {[%emt 0:00:08]} Bd3 {[%emt 0:00:26]} 34. h4 {[%emt 0:04:32]} g6 {[%emt 0:01:51]} 35. Kf4 {[%emt 0:17:27]} h6 {[%emt 0:02:35]} 36. g4 {[%emt 0:00:08]} fxg4 {[%emt 0:01:48]} 37. Nxg4 {[%emt 0:00:20]} Ke6 {[%emt 0:00:22]} 38. Bf8 {[%emt 0:01:36]} h5 {[%emt 0:00:13]} 39. Ne3 {[%emt 0:00:10]} Bf6 {[%emt 0:00:41]} 40. Kg3 {[%emt 0:00:00]} Ke5 {[%emt 0:00:00]} 41. Bc5 {[%emt 0:06:34]} Bd8 {[%emt 0:12:51]} 42. f3 {[%emt 0:03:10]} Bc7 {[%emt 0:05:20]} 43. Kf2 {[%emt 0:00:22]} Bd6 {[%emt 0:02:57]} 44. f4+ {[%emt 0:00:54]} Ke6 {[%emt 0:00:02]} 45. Bxd6 {[%emt 0:00:06]} Kxd6 {[%emt 0:00:08]} 46. Ke1 {[%emt 0:01:21]} Ke6 {[%emt 0:00:42]} 47. Kd2 {[%emt 0:00:08]} Be4 {[%emt 0:00:10]} 48. Kc3 {[%emt 0:00:08]} Bf3 {[%emt 0:00:37]} 49. Kd4 {[%emt 0:00:09]} Be2 {[%emt 0:00:25]} 50. Ke4 {[%emt 0:00:28]} Kf6 {[%emt 0:01:55]} 51. Kd5 {[%emt 0:00:55]} Bd3 {[%emt 0:01:13]} 52. Kd4 {[%emt 0:01:15]} Be2 {[%emt 0:00:43]} 53. Ke4 {[%emt 0:00:13]} Ke6 {[%emt 0:00:22]} 54. Nc2 {[%emt 0:02:03]} Kf6 {[%emt 0:00:27]} 55. Nd4 {[%emt 0:01:29]} Bc4 {[%emt 0:00:16]} 56. Ke3 {[%emt 0:02:43]} Bf1 {[%emt 0:00:50]} 57. Kf3 {[%emt 0:00:31]} Bd3 {[%emt 0:00:18]} 58. Ke3 {[%emt 0:02:26]} Bf1 {[%emt 0:00:07]} 59. Ke4 {[%emt 0:00:26]} Bc4 {[%emt 0:00:02]} 60. Kf3 {[%emt 0:03:30]} Bd3 {[%emt 0:00:59]} 1/2-1/2

[Event "Cracovia Festival-A 2023"]
[Site "Krakow"]
[Date "2024.01.04"]
[Round "9.29"]
[White "Gkavardinas, Antonios"]
[Black "Meurs, Tom"]
[Result "1-0"]
[ECO "C50"]
[WhiteElo "2141"]
[BlackElo "2290"]
[Annotator "RC"]
[PlyCount "53"]
[EventDate "2023.12.24"]
[EventType "swiss"]
[EventCountry "POL"]
[SourceTitle "playchess.com"]
[Source "ChessBase"]
[SourceQuality "1"]
[TimeControl "40/5400+30:1800+30"]

1. e4 {[%emt 0:00:02]} e5 {[%emt 0:00:14]} 2. Nf3 {[%emt 0:00:07]} Nc6 {[%emt 0:00:13]} 3. Bc4 {[%emt 0:00:08]} Nf6 {[%emt 0:00:10]} 4. d3 {[%emt 0:00:08]} Bc5 {[%emt 0:00:05]} 5. O-O {[%emt 0:00:09]} d6 {[%emt 0:00:04]} 6. c3 {[%emt 0:00:11]} a5 {[%emt 0:00:06]} 7. Re1 {[%emt 0:00:39]} Ba7 {[%emt 0:00:06]} 8. Nbd2 {[%emt 0:00:59]} O-O {[%emt 0:00:09]} 9. h3 {[%emt 0:01:26]} Be6 {[%emt 0:04:35]} 10. Bb5 {[%emt 0:01:31]} Ne7 {[%emt 0:00:06]} 11. d4 {[%emt 0:01:34]} c6 {[%emt 0:00:15]} 12. Bd3 {[%emt 0:02:04]} Ng6 {[%emt 0:00:21]} 13. Nf1 {[%emt 0:00:55]} Nh5 {[%emt 0:08:30]} 14. Bc2 {[%emt 0:03:34]} Nhf4 {[%emt 0:01:04]} 15. Ng3 {[%emt 0:01:39]} Qf6 {[%emt 0:02:07]} 16. Nf5 {[%emt 0:05:30]} h6 {[%emt 0:32:16]} 17. g3 {[%emt 0:05:55]} Nd5 {[%emt 0:19:03]} 18. Nh2 {[%emt 0:09:32]} Bxf5 {[%emt 0:06:28]} 19. exf5 {[%emt 0:00:00]} Ngf4 20. gxf4 {[%emt 0:03:52]} exd4 {[%emt 0:03:35]} 21. Qf3 {[%emt 0:02:32]} dxc3 {[%emt 0:04:19]} 22. bxc3 {[%emt 0:01:18]} Rfe8 {[%emt 0:00:25]} 23. Bd2 {[%emt 0:00:20]} Bc5 {[%emt 0:04:53]} 24. Kg2 {[%emt 0:02:26]} Nb6 {[%emt 0:03:09]} 25. Bd3 {[%emt 0:01:47]} d5 {[%emt 0:00:21]} 26. Ng4 {[%emt 0:00:50]} Qd6 {[%emt 0:00:14]} 27. f6 {[%emt 0:00:55]} 1-0

[Event "Cracovia Festival-A 2023"]
[Site "Krakow"]
[Date "2024.01.04"]
[Round "9.30"]
[White "Wojdak, Jan"]
[Black "Hnatyshyn, Anastasiia"]
[Result "1/2-1/2"]
[ECO "E04"]
[WhiteElo "2219"]
[BlackElo "2152"]
[Annotator "RC"]
[PlyCount "93"]
[EventDate "2023.12.24"]
[EventType "swiss"]
[EventCountry "POL"]
[SourceTitle "playchess.com"]
[Source "ChessBase"]
[SourceQuality "1"]
[TimeControl "40/5400+30:1800+30"]

1. d4 {[%emt 0:01:14]} d5 {[%emt 0:13:56]} 2. c4 {[%emt 0:00:02]} e6 {[%emt 0:00:05]} 3. Nf3 {[%emt 0:00:05]} Nf6 {[%emt 0:00:05]} 4. g3 {[%emt 0:00:04]} dxc4 {[%emt 0:00:06]} 5. Bg2 {[%emt 0:00:35]} a6 {[%emt 0:00:18]} 6. O-O {[%emt 0:11:49]} Nc6 {[%emt 0:00:12]} 7. a4 {[%emt 0:05:49]} Rb8 {[%emt 0:01:53]} 8. e3 {[%emt 0:02:48]} b5 {[%emt 0:03:10]} 9. axb5 {[%emt 0:01:24]} axb5 {[%emt 0:00:05]} 10. b3 {[%emt 0:00:10]} cxb3 {[%emt 0:00:28]} 11. Qxb3 Be7 {[%emt 0:19:28]} 12. Bb2 {[%emt 0:05:20]} O-O {[%emt 0:00:54]} 13. Rc1 {[%emt 0:06:43]} Nb4 {[%emt 0:11:27]} 14. Nbd2 {[%emt 0:10:36]} Bb7 {[%emt 0:12:20]} 15. Ba3 {[%emt 0:01:18]} Nbd5 {[%emt 0:01:10]} 16. Bb2 {[%emt 0:08:07]} Nb4 {[%emt 0:03:11]} 17. Ba3 {[%emt 0:01:33]} Nbd5 {[%emt 0:00:23]} 18. Bb2 {[%emt 0:02:40]} Nb6 {[%emt 0:06:11]} 19. Qxb5 {[%emt 0:01:50]} Bd5 {[%emt 0:01:49]} 20. Qd3 {[%emt 0:03:16]} Ba8 {[%emt 0:03:48]} 21. Ba3 {[%emt 0:08:40]} Bxa3 {[%emt 0:01:13]} 22. Qxa3 {[%emt 0:00:46]} Ne4 {[%emt 0:02:30]} 23. Nxe4 {[%emt 0:02:21]} Bxe4 {[%emt 0:00:04]} 24. Qc5 {[%emt 0:00:35]} Ra8 {[%emt 0:05:56]} 25. Ne5 {[%emt 0:02:38]} Bxg2 {[%emt 0:00:06]} 26. Kxg2 {[%emt 0:00:03]} Rxa1 {[%emt 0:00:21]} 27. Rxa1 {[%emt 0:00:02]} Nd7 {[%emt 0:00:16]} 28. Nxd7 {[%emt 0:01:04]} Qxd7 {[%emt 0:00:04]} 29. Rc1 {[%emt 0:02:09]} Rc8 {[%emt 0:00:22]} 30. h4 {[%emt 0:03:25]} h6 {[%emt 0:00:39]} 31. h5 {[%emt 0:01:49]} Ra8 {[%emt 0:01:09]} 32. Qe5 {[%emt 0:00:59]} c6 {[%emt 0:01:16]} 33. Rc5 {[%emt 0:00:37]} Qb7 {[%emt 0:02:04]} 34. Qe4 {[%emt 0:00:15]} Ra6 {[%emt 0:01:06]} 35. g4 {[%emt 0:01:14]} Rb6 {[%emt 0:02:20]} 36. Qf3 {[%emt 0:05:20]} Qa6 {[%emt 0:01:35]} 37. g5 {[%emt 0:05:29]} Rb1 {[%emt 0:04:23]} 38. g6 {[%emt 0:04:19]} fxg6 {[%emt 0:00:29]} 39. Qxc6 {[%emt 0:02:11]} Qf1+ {[%emt 0:00:47]} 40. Kg3 {[%emt 0:00:00]} Qg1+ {[%emt 0:00:00]} 41. Qg2 {[%emt 0:03:14]} gxh5 {[%emt 0:06:54]} 42. Rxh5 {[%emt 0:00:44]} Kf7 {[%emt 0:01:13]} 43. Rc5 {[%emt 0:02:13]} g5 {[%emt 0:02:10]} 44. Qxg1 {[%emt 0:01:43]} Rxg1+ {[%emt 0:00:05]} 45. Kh2 {[%emt 0:03:32]} Rd1 {[%emt 0:00:42]} 46. Kg3 {[%emt 0:03:09]} Rg1+ {[%emt 0:00:41]} 47. Kh2 {[%emt 0:00:22]} 1/2-1/2

[Event "Cracovia Festival-A 2023"]
[Site "Krakow"]
[Date "2024.01.04"]
[Round "9.31"]
[White "Selbes, Tamer Tarik"]
[Black "Gorkiewicz, Mateusz"]
[Result "1/2-1/2"]
[ECO "A14"]
[WhiteElo "2185"]
[BlackElo "2147"]
[Annotator "RC"]
[PlyCount "120"]
[EventDate "2023.12.24"]
[EventType "swiss"]
[EventCountry "POL"]
[SourceTitle "playchess.com"]
[Source "ChessBase"]
[SourceQuality "1"]
[TimeControl "40/5400+30:1800+30"]

1. Nf3 {[%emt 0:08:14]} Nf6 {[%emt 0:00:21]} 2. g3 {[%emt 0:00:17]} d5 {[%emt 0:00:19]} 3. Bg2 {[%emt 0:00:05]} e6 {[%emt 0:00:11]} 4. c4 {[%emt 0:00:09]} Be7 {[%emt 0:00:17]} 5. O-O {[%emt 0:00:11]} O-O {[%emt 0:00:11]} 6. d4 {[%emt 0:00:15]} dxc4 {[%emt 0:00:22]} 7. Qc2 {[%emt 0:04:09]} a6 {[%emt 0:00:13]} 8. a4 {[%emt 0:01:03]} Bd7 {[%emt 0:00:29]} 9. Qxc4 {[%emt 0:00:18]} Bc6 {[%emt 0:00:18]} 10. Bg5 {[%emt 0:02:21]} Nbd7 {[%emt 0:01:10]} 11. Nc3 {[%emt 0:05:18]} h6 {[%emt 0:00:29]} 12. Bxf6 {[%emt 0:00:20]} Nxf6 {[%emt 0:00:07]} 13. Rfe1 {[%emt 0:04:15]} Bd5 {[%emt 0:01:01]} 14. Qd3 {[%emt 0:01:28]} Bxf3 {[%emt 0:00:45]} 15. Bxf3 {[%emt 0:00:10]} c6 {[%emt 0:00:20]} 16. e3 {[%emt 0:01:54]} Qc7 {[%emt 0:21:33]} 17. Red1 {[%emt 0:02:39]} Rad8 {[%emt 0:02:16]} 18. Qc4 {[%emt 0:00:50]} Qb8 {[%emt 0:05:50]} 19. a5 {[%emt 0:02:12]} Rfe8 {[%emt 0:05:08]} 20. h4 {[%emt 0:10:59]} h5 {[%emt 0:03:17]} 21. Rd3 {[%emt 0:08:27]} g6 {[%emt 0:06:57]} 22. Rad1 {[%emt 0:02:55]} Kg7 {[%emt 0:09:27]} 23. Kg2 {[%emt 0:04:59]} Qc7 {[%emt 0:03:49]} 24. e4 {[%emt 0:09:53]} Qxa5 {[%emt 0:03:27]} 25. d5 {[%emt 0:00:05]} Qb4 {[%emt 0:07:36]} 26. Qxb4 {[%emt 0:15:05]} Bxb4 {[%emt 0:00:08]} 27. Na2 {[%emt 0:00:37]} Bf8 {[%emt 0:08:46]} 28. dxc6 {[%emt 0:02:10]} Rxd3 {[%emt 0:00:11]} 29. Rxd3 {[%emt 0:00:03]} bxc6 {[%emt 0:00:07]} 30. Nc1 {[%emt 0:09:52]} Rb8 {[%emt 0:10:46]} 31. Rc3 {[%emt 0:00:04]} c5 {[%emt 0:07:10]} 32. Nd3 {[%emt 0:00:06]} Rb5 {[%emt 0:01:11]} 33. Rc4 {[%emt 0:02:03]} Nd7 {[%emt 0:00:19]} 34. Ra4 {[%emt 0:00:47]} a5 {[%emt 0:00:24]} 35. Be2 {[%emt 0:01:52]} Nb6 {[%emt 0:00:19]} 36. Ra2 {[%emt 0:00:12]} c4 {[%emt 0:00:15]} 37. Ne1 {[%emt 0:00:33]} Bc5 {[%emt 0:02:07]} 38. Nf3 {[%emt 0:00:48]} a4 {[%emt 0:00:46]} 39. Ne5 {[%emt 0:01:07]} Bd4 {[%emt 0:01:02]} 40. Nxc4 {[%emt 0:00:00]} Nxc4 {[%emt 0:00:00]} 41. Rxa4 {[%emt 0:00:44]} Rxb2 {[%emt 0:11:36]} 42. Rxc4 {[%emt 0:00:06]} Bb6 {[%emt 0:00:23]} 43. Kf1 {[%emt 0:00:12]} Kf6 {[%emt 0:02:52]} 44. f4 {[%emt 0:01:12]} Rb3 {[%emt 0:01:19]} 45. Kg2 {[%emt 0:00:20]} Ba5 {[%emt 0:02:54]} 46. Rc5 {[%emt 0:08:45]} Be1 {[%emt 0:01:31]} 47. Rg5 {[%emt 0:00:18]} Re3 {[%emt 0:02:27]} 48. Bf3 {[%emt 0:01:16]} Ra3 {[%emt 0:00:41]} 49. Rb5 {[%emt 0:02:00]} Ra2+ {[%emt 0:00:21]} 50. Kh3 {[%emt 0:00:22]} Rf2 {[%emt 0:02:14]} 51. Bg2 {[%emt 0:04:13]} Rc2 {[%emt 0:00:43]} 52. e5+ {[%emt 0:04:45]} Kg7 {[%emt 0:00:14]} 53. Rb3 {[%emt 0:00:12]} Bf2 {[%emt 0:00:28]} 54. Be4 {[%emt 0:00:39]} Re2 {[%emt 0:01:04]} 55. Bf3 {[%emt 0:00:11]} Ra2 {[%emt 0:00:26]} 56. Rb1 {[%emt 0:07:04]} Rc2 {[%emt 0:01:48]} 57. Rh1 {[%emt 0:01:38]} Bc5 {[%emt 0:00:30]} 58. Rh2 {[%emt 0:01:45]} Rc3 {[%emt 0:00:10]} 59. Be4 {[%emt 0:00:29]} Be3 {[%emt 0:00:39]} 60. Rc2 {[%emt 0:00:24]} Rxc2 {[%emt 0:01:01]} 1/2-1/2

[Event "Cracovia Festival-A 2023"]
[Site "Krakow"]
[Date "2024.01.04"]
[Round "9.32"]
[White "Leskiewicz, Ignacy"]
[Black "Gaurav Rajesh Zagade"]
[Result "1-0"]
[ECO "B31"]
[WhiteElo "2177"]
[BlackElo "2126"]
[Annotator "RC"]
[PlyCount "63"]
[EventDate "2023.12.24"]
[EventType "swiss"]
[EventCountry "POL"]
[SourceTitle "playchess.com"]
[Source "ChessBase"]
[SourceQuality "1"]
[TimeControl "40/5400+30:1800+30"]

1. e4 {[%emt 0:05:06]} c5 {[%emt 0:02:32]} 2. Nf3 {[%emt 0:00:46]} Nc6 {[%emt 0:00:42]} 3. Bb5 {[%emt 0:00:24]} g6 {[%emt 0:00:14]} 4. Bxc6 {[%emt 0:00:25]} dxc6 {[%emt 0:00:19]} 5. O-O {[%emt 0:01:13]} Bg7 {[%emt 0:00:48]} 6. Re1 {[%emt 0:01:34]} Bg4 {[%emt 0:04:39]} 7. h3 {[%emt 0:04:42]} Bxf3 {[%emt 0:00:09]} 8. Qxf3 {[%emt 0:00:01]} e5 {[%emt 0:00:59]} 9. a4 {[%emt 0:03:22]} a5 {[%emt 0:02:29]} 10. d3 {[%emt 0:06:08]} Qc7 {[%emt 0:05:52]} 11. Na3 {[%emt 0:02:05]} Nf6 {[%emt 0:03:40]} 12. Nc4 {[%emt 0:02:01]} O-O {[%emt 0:03:24]} 13. Bd2 {[%emt 0:02:21]} b6 {[%emt 0:00:40]} 14. Ra3 {[%emt 0:06:25]} Nd7 {[%emt 0:13:54]} 15. g4 {[%emt 0:06:15]} f6 {[%emt 0:03:30]} 16. h4 {[%emt 0:07:37]} Rf7 {[%emt 0:01:25]} 17. h5 {[%emt 0:01:20]} Bf8 {[%emt 0:04:59]} 18. hxg6 {[%emt 0:03:19]} hxg6 {[%emt 0:00:07]} 19. Kg2 {[%emt 0:00:10]} Rh7 {[%emt 0:05:28]} 20. Raa1 {[%emt 0:02:47]} Bg7 {[%emt 0:07:44]} 21. Rh1 {[%emt 0:05:50]} Rxh1 {[%emt 0:00:28]} 22. Rxh1 {[%emt 0:00:02]} Nf8 {[%emt 0:01:37]} 23. Qh3 {[%emt 0:16:23]} Re8 {[%emt 0:02:03]} 24. Kg1 {[%emt 0:05:13]} Ne6 {[%emt 0:02:48]} 25. Bh6 {[%emt 0:02:52]} Rb8 {[%emt 0:06:29]} 26. f4 {[%emt 0:04:38]} Nxf4 {[%emt 0:11:30]} 27. Bxf4 {[%emt 0:00:15]} exf4 {[%emt 0:00:07]} 28. Qh7+ {[%emt 0:03:04]} Kf7 {[%emt 0:00:09]} 29. Rh6 {[%emt 0:00:03]} g5 {[%emt 0:03:30]} 30. e5 {[%emt 0:01:22]} fxe5 {[%emt 0:05:27]} 31. Nd6+ {[%emt 0:00:10]} Kf8 {[%emt 0:00:16]} 32. Rf6+ {[%emt 0:00:05]} 1-0

[Event "Cracovia Festival-A 2023"]
[Site "Krakow"]
[Date "2024.01.04"]
[Round "9.33"]
[White "Valiyev, Shahin"]
[Black "Zarnowski, Krzysztof"]
[Result "1-0"]
[ECO "C06"]
[WhiteElo "2158"]
[BlackElo "2114"]
[Annotator "RC"]
[PlyCount "63"]
[EventDate "2023.12.24"]
[EventType "swiss"]
[EventCountry "POL"]
[SourceTitle "playchess.com"]
[Source "ChessBase"]
[SourceQuality "1"]
[TimeControl "40/5400+30:1800+30"]

1. e4 {[%emt 0:14:32]} e6 {[%emt 0:00:04]} 2. d4 {[%emt 0:00:04]} d5 {[%emt 0:00:04]} 3. Nd2 {[%emt 0:00:05]} Nf6 {[%emt 0:00:06]} 4. e5 {[%emt 0:00:04]} Nfd7 {[%emt 0:00:05]} 5. Bd3 {[%emt 0:00:08]} c5 {[%emt 0:00:03]} 6. c3 {[%emt 0:00:04]} Nc6 {[%emt 0:00:04]} 7. Ne2 {[%emt 0:00:11]} cxd4 {[%emt 0:00:05]} 8. cxd4 {[%emt 0:00:04]} f6 {[%emt 0:00:04]} 9. exf6 {[%emt 0:00:05]} Nxf6 {[%emt 0:00:05]} 10. O-O {[%emt 0:00:33]} Bd6 {[%emt 0:00:03]} 11. Nf3 {[%emt 0:00:07]} Qc7 {[%emt 0:00:27]} 12. h3 {[%emt 0:00:05]} O-O {[%emt 0:00:40]} 13. Be3 {[%emt 0:00:09]} Bd7 {[%emt 0:13:22]} 14. Re1 {[%emt 0:00:01]} a6 {[%emt 0:02:49]} 15. Rc1 {[%emt 0:01:27]} Nh5 {[%emt 0:06:48]} 16. Ng5 {[%emt 0:21:59]} g6 {[%emt 0:04:59]} 17. Nc3 {[%emt 0:05:56]} Ng7 {[%emt 0:05:34]} 18. Qg4 {[%emt 0:08:17]} Nf5 {[%emt 0:13:44]} 19. Bxf5 {[%emt 0:00:11]} Rxf5 {[%emt 0:00:52]} 20. Qh4 {[%emt 0:00:18]} Bc8 {[%emt 0:00:39]} 21. Na4 {[%emt 0:04:07]} Rb8 {[%emt 0:09:12]} 22. Bd2 {[%emt 0:08:31]} Qg7 {[%emt 0:11:38]} 23. Nb6 {[%emt 0:02:13]} e5 {[%emt 0:09:57]} 24. dxe5 {[%emt 0:06:21]} Rxe5 {[%emt 0:00:22]} 25. Bf4 {[%emt 0:02:18]} Bf5 {[%emt 0:00:48]} 26. Bxe5 {[%emt 0:02:34]} Nxe5 {[%emt 0:01:12]} 27. Qd4 {[%emt 0:02:12]} Nf7 {[%emt 0:08:37]} 28. Qxd5 {[%emt 0:02:16]} Bf4 {[%emt 0:00:10]} 29. Rc8+ {[%emt 0:02:01]} Rxc8 {[%emt 0:00:19]} 30. Nxc8 {[%emt 0:00:05]} Qf8 {[%emt 0:02:47]} 31. Ne7+ {[%emt 0:00:28]} Kg7 {[%emt 0:00:21]} 32. Nxf5+ {[%emt 0:00:06]} 1-0

[Event "Cracovia Festival-A 2023"]
[Site "Krakow"]
[Date "2024.01.04"]
[Round "9.34"]
[White "Lehocz, Jozsef Jr."]
[Black "Pyrig, Roman"]
[Result "0-1"]
[ECO "B22"]
[WhiteElo "2116"]
[BlackElo "2154"]
[Annotator "RC"]
[PlyCount "134"]
[EventDate "2023.12.24"]
[EventType "swiss"]
[EventCountry "POL"]
[SourceTitle "playchess.com"]
[Source "ChessBase"]
[SourceQuality "1"]
[TimeControl "40/5400+30:1800+30"]

1. e4 {[%emt 0:00:03]} c5 {[%emt 0:15:56]} 2. c3 {[%emt 0:00:07]} d5 {[%emt 0:01:00]} 3. exd5 {[%emt 0:00:14]} Qxd5 {[%emt 0:00:06]} 4. d4 {[%emt 0:00:07]} Nf6 {[%emt 0:00:03]} 5. Be3 {[%emt 0:01:57]} cxd4 {[%emt 0:03:57]} 6. cxd4 {[%emt 0:00:36]} e6 {[%emt 0:00:10]} 7. Nc3 {[%emt 0:01:54]} Qa5 {[%emt 0:00:02]} 8. Bc4 {[%emt 0:06:01]} Bb4 {[%emt 0:03:52]} 9. Nf3 {[%emt 0:07:51]} Bxc3+ {[%emt 0:11:13]} 10. bxc3 {[%emt 0:00:10]} Qxc3+ {[%emt 0:00:02]} 11. Bd2 {[%emt 0:00:33]} Qxc4 {[%emt 0:01:15]} 12. Rc1 {[%emt 0:00:23]} Qc6 {[%emt 0:00:42]} 13. Rxc6 {[%emt 0:12:53]} Nxc6 {[%emt 0:00:18]} 14. Ne5 {[%emt 0:10:41]} O-O {[%emt 0:08:35]} 15. Nxc6 {[%emt 0:11:22]} bxc6 {[%emt 0:00:41]} 16. Qa4 {[%emt 0:07:47]} Bd7 {[%emt 0:01:33]} 17. Qa3 {[%emt 0:00:32]} Nd5 {[%emt 0:05:12]} 18. O-O {[%emt 0:00:50]} Rfb8 {[%emt 0:00:02]} 19. Rc1 {[%emt 0:05:20]} Rb7 {[%emt 0:01:07]} 20. h3 {[%emt 0:01:30]} h6 {[%emt 0:00:52]} 21. Rc5 {[%emt 0:04:52]} Be8 {[%emt 0:01:27]} 22. Ra5 {[%emt 0:03:46]} Bd7 {[%emt 0:00:40]} 23. Kh2 {[%emt 0:01:08]} Be8 {[%emt 0:05:36]} 24. Qg3 {[%emt 0:01:27]} Kh7 {[%emt 0:01:06]} 25. Qd3+ {[%emt 0:00:28]} Kg8 {[%emt 0:00:08]} 26. Qa3 {[%emt 0:00:37]} Bd7 {[%emt 0:01:57]} 27. Bc1 {[%emt 0:01:08]} Be8 {[%emt 0:01:45]} 28. Qg3 {[%emt 0:02:35]} Kh7 {[%emt 0:01:25]} 29. Ba3 {[%emt 0:00:42]} Kg8 {[%emt 0:03:11]} 30. Bc5 {[%emt 0:01:05]} Bd7 {[%emt 0:00:03]} 31. Qa3 {[%emt 0:00:37]} Nc7 {[%emt 0:00:01]} 32. Qa4 {[%emt 0:04:08]} Nb5 {[%emt 0:02:31]} 33. Qc4 {[%emt 0:02:21]} Be8 {[%emt 0:02:35]} 34. Qd3 {[%emt 0:04:47]} Bd7 {[%emt 0:02:16]} 35. Qg3 {[%emt 0:00:03]} Kh7 {[%emt 0:03:39]} 36. Qf4 {[%emt 0:00:47]} Be8 {[%emt 0:02:28]} 37. Qe5 {[%emt 0:01:26]} Bd7 {[%emt 0:00:27]} 38. h4 {[%emt 0:02:16]} Kg8 {[%emt 0:02:57]} 39. Ra4 {[%emt 0:00:20]} a5 {[%emt 0:00:55]} 40. Qe1 {[%emt 0:00:00]} e5 {[%emt 0:00:00]} 41. dxe5 {[%emt 0:01:59]} Be6 {[%emt 0:01:10]} 42. Rxa5 {[%emt 0:02:40]} Rd8 {[%emt 0:00:01]} 43. a4 {[%emt 0:03:01]} Nd4 {[%emt 0:00:01]} 44. Ra7 {[%emt 0:05:01]} Rb2 {[%emt 0:00:53]} 45. Bd6 {[%emt 0:14:26]} c5 {[%emt 0:04:15]} 46. Bxc5 {[%emt 0:02:05]} Nf5 {[%emt 0:00:44]} 47. Bd6 {[%emt 0:02:08]} Rc8 {[%emt 0:00:33]} 48. Rc7 {[%emt 0:01:00]} Ra8 {[%emt 0:00:01]} 49. Qe4 {[%emt 0:00:11]} Ra6 {[%emt 0:00:39]} 50. Rc6 {[%emt 0:04:49]} Ra5 {[%emt 0:01:38]} 51. Rc5 {[%emt 0:00:22]} Nxd6 52. Qd4 {[%emt 0:02:08]} Rxc5 {[%emt 0:01:05]} 53. Qxc5 {[%emt 0:00:29]} Nc4 {[%emt 0:00:58]} 54. h5 {[%emt 0:01:02]} Re2 {[%emt 0:01:18]} 55. Qb4 {[%emt 0:00:42]} Rxf2 {[%emt 0:07:56]} 56. Qb8+ {[%emt 0:00:19]} Kh7 {[%emt 0:00:01]} 57. Qb1+ {[%emt 0:00:40]} Bf5 {[%emt 0:00:01]} 58. Qe1 {[%emt 0:00:21]} Ra2 {[%emt 0:01:03]} 59. Qf1 {[%emt 0:00:01]} Ne3 {[%emt 0:00:01]} 60. Qf4 {[%emt 0:00:23]} Rxg2+ {[%emt 0:00:03]} 61. Kh1 {[%emt 0:00:13]} Re2 {[%emt 0:00:07]} 62. a5 {[%emt 0:00:40]} Be6 {[%emt 0:00:42]} 63. Qe4+ {[%emt 0:00:18]} g6 {[%emt 0:00:19]} 64. hxg6+ {[%emt 0:00:04]} Kg7 {[%emt 0:00:01]} 65. Qd4 {[%emt 0:01:07]} Bd5+ {[%emt 0:00:07]} 66. Kg1 {[%emt 0:00:12]} Rg2+ {[%emt 0:00:02]} 67. Kh1 {[%emt 0:00:04]} Rd2+ {[%emt 0:00:03]} 0-1